[Event "Summer Prague Open-A 2022"]
[Site "Prague"]
[Date "2022.08.09"]
[Round "6.6"]
[White "Slampa, Jan"]
[Black "Lutsko, Artem"]
[Result "0-1"]
[ECO "B92"]
[WhiteElo "2254"]
[BlackElo "2392"]
[Annotator "RC"]
[PlyCount "70"]
[EventDate "2022.08.05"]
[EventType "swiss"]
[EventCountry "CZE"]
[SourceTitle "playchess.com"]
[Source "ChessBase"]
[SourceQuality "1"]
[TimeControl "40/5400+30:1800+30"]

1. e4 {[%emt 0:00:03]} c5 {[%emt 0:00:04]} 2. Nf3 {[%emt 0:00:11]} d6 {[%emt 0:00:21]} 3. d4 {[%emt 0:00:15]} cxd4 {[%emt 0:00:03]} 4. Nxd4 {[%emt 0:00:07]} Nf6 {[%emt 0:00:03]} 5. Nc3 {[%emt 0:00:09]} a6 {[%emt 0:00:03]} 6. Be2 {[%emt 0:00:06]} e5 {[%emt 0:00:04]} 7. Nb3 {[%emt 0:00:10]} Be7 {[%emt 0:00:03]} 8. O-O {[%emt 0:00:47]} O-O {[%emt 0:00:04]} 9. a4 {[%emt 0:01:15]} Be6 {[%emt 0:01:04]} 10. f4 {[%emt 0:01:15]} exf4 {[%emt 0:02:21]} 11. Bxf4 {[%emt 0:01:36]} Nc6 {[%emt 0:00:02]} 12. Kh1 {[%emt 0:05:01]} d5 {[%emt 0:00:37]} 13. e5 {[%emt 0:06:56]} Nd7 {[%emt 0:12:49]} 14. Bf3 {[%emt 0:05:50]} Ndxe5 {[%emt 0:05:41]} 15. Nxd5 {[%emt 0:08:19]} Bg5 {[%emt 0:07:10]} 16. Bxg5 {[%emt 0:11:58]} Qxg5 {[%emt 0:00:05]} 17. Nc7 {[%emt 0:00:16]} Bxb3 {[%emt 0:02:33]} 18. Nxa8 {[%emt 0:15:46]} Bc4 {[%emt 0:00:07]} 19. Bxc6 {[%emt 0:02:40]} Nxc6 {[%emt 0:02:55]} 20. Re1 {[%emt 0:16:15]} Bd5 {[%emt 0:14:15]} 21. Qe2 {[%emt 0:01:57]} Nd4 {[%emt 0:00:02]} 22. Qf2 {[%emt 0:00:28]} Rxa8 {[%emt 0:00:04]} 23. Rad1 {[%emt 0:06:12]} Ne6 {[%emt 0:02:07]} 24. Rf1 {[%emt 0:03:35]} Rf8 {[%emt 0:00:25]} 25. h4 {[%emt 0:01:26]} Qh5 {[%emt 0:01:16]} 26. b3 {[%emt 0:00:47]} Bc6 {[%emt 0:00:27]} 27. Rde1 {[%emt 0:02:23]} Qg4 {[%emt 0:00:49]} 28. Re5 {[%emt 0:07:36]} f6 {[%emt 0:04:27]} 29. Re3 {[%emt 0:00:55]} Nf4 {[%emt 0:01:12]} 30. Kg1 {[%emt 0:00:00]} Qxg2+ {[%emt 0:00:23]} 31. Qxg2 {[%emt 0:00:07]} Nxg2 {[%emt 0:00:03]} 32. Rh3 {[%emt 0:00:54]} Re8 {[%emt 0:00:30]} 33. Rf2 {[%emt 0:00:32]} Re1+ {[%emt 0:01:37]} 34. Kh2 {[%emt 0:00:28]} Ne3 {[%emt 0:01:03]} 35. Kg3 {[%emt 0:00:14]} Bd7 {[%emt 0:00:20]} 0-1

[Event "Summer Prague Open-A 2022"]
[Site "Prague"]
[Date "2022.08.09"]
[Round "6.7"]
[White "Kambrath, Yannick"]
[Black "Mannion, Stephen R"]
[Result "1/2-1/2"]
[ECO "A21"]
[WhiteElo "2401"]
[BlackElo "2232"]
[Annotator "TA"]
[PlyCount "141"]
[EventDate "2022.08.05"]
[EventType "swiss"]
[EventCountry "CZE"]
[SourceTitle "playchess.com"]
[Source "ChessBase"]
[SourceQuality "1"]
[TimeControl "40/5400+30:1800+30"]

{[%evp 9,141,0,-5,-16,-5,-10,0,-32,0,4,20,16,13,19,23,15,33,37,37,33,37,14,41,31,31,25,52,10,8,7,7,0,25,0,0,0,1,0,29,28,33,27,12,22,37,48,56,47,52,45,68,31,37,23,45,48,43,29,54,62,77,68,66,72,69,26,16,-71,40,31,30,29,32,13,0,4,51,13,23,0,0,0,0,-37,-38,-38,-41,-60,0,0,0,0,0,0,0,0,6,6,14,14,18,18,19,18,19,14,19,19,19,0,0,0,0,0,8,8,13,0,0,0,0,0,0,0,0,0,0,0,0,0,0,0,0,0]} 1. c4 {[%emt 0:00:59]} e5 {[%emt 0:00:25]} 2. Nc3 {[%emt 0:00:06]} Bb4 {[%emt 0:00:07]} 3. Qc2 {[%emt 0:00:57]} Nf6 {[%emt 0:00:55]} 4. Nf3 {[%emt 0:00:21]} Qe7 {[%emt 0:04:13]} 5. e3 {[%emt 0:02:30]} O-O {[%emt 0:01:31]} 6. a3 {[%emt 0:04:39] A21: English Opening: 1...e5 2 Nc3.} Bxc3 {[%emt 0:00:14]} 7. Qxc3 {[%emt 0:00:08] [#]} Re8 $146 {[%emt 0:23:17]} ({Predecessor:} 7... Nc6 8. b4 d5 9. cxd5 Nxd5 10. Qc5 Qxc5 11. bxc5 f6 12. Bb2 Be6 13. d4 e4 {½-½ (79) Drozdowski,K (2435)-Miton,K (2624) Poland 2013}) 8. Be2 {[%emt 0:10:04]} a5 {[%emt 0:07:03]} 9. b3 {[%emt 0:06:21]} Nc6 {[%emt 0:04:13]} 10. Bb2 {[%emt 0:04:09]} d6 {[%emt 0:12:40]} 11. O-O {[%emt 0:08:27]} Bg4 {[%emt 0:01:31]} 12. d3 {[%emt 0:03:32]} d5 {[%emt 0:13:35]} 13. cxd5 Nxd5 {[%emt 0:00:06]} 14. Qc2 {[%emt 0:02:18]} f6 {[%emt 0:07:03]} 15. Rac1 {[%emt 0:02:19]} (15. h3 $5 {[%cal Rh3g4]} Bd7 16. Nd2 $14) 15... Kh8 {[%emt 0:02:54]} 16. h3 {[%emt 0:03:06]} Be6 {[%emt 0:00:05]} 17. Rfe1 {[%emt 0:01:45]} Qf7 {[%emt 0:01:32]} 18. Nd2 {[%emt 0:10:53]} Nde7 {[%emt 0:00:25]} 19. Bc3 {[%emt 0:02:23]} Red8 {[%emt 0:02:24]} 20. Qb1 {[%emt 0:01:25]} Bd5 {[%emt 0:03:54]} 21. Qb2 {[%emt 0:07:58]} Qg6 {[%emt 0:00:29][%csl Gd5][%cal Rg6g2] [#]} 22. Bf1 {[%emt 0:00:29]} Be6 {[%emt 0:00:14]} 23. Kh2 {[%emt 0:01:45]} Bf5 {[%emt 0:02:04]} 24. e4 {[%emt 0:05:13]} Be6 {[%emt 0:00:09]} 25. Nf3 {[%emt 0:02:45]} (25. Ra1 {with more complications.} Qh6 26. b4 Nd4 27. Kg1) 25... Qf7 {[%emt 0:00:42]} 26. Rb1 {[%emt 0:00:38]} Nc8 {[%emt 0:00:26]} 27. d4 {[%emt 0:04:26]} exd4 {[%emt 0:00:31]} 28. Nxd4 {[%emt 0:00:10]} Nxd4 {[%emt 0:01:04]} 29. Bxd4 {[%emt 0:00:02]} Ne7 {[%emt 0:00:09]} 30. Bc3 {[%emt 0:03:26]} Ng6 {[%emt 0:02:53]} 31. Qc2 {[%emt 0:03:47]} b6 {[%emt 0:02:32]} 32. b4 {[%emt 0:02:16]} axb4 {[%emt 0:00:10]} 33. axb4 {[%emt 0:00:04]} Re8 {[%emt 0:02:24]} 34. Bd4 {[%emt 0:01:25]} Rad8 {[%emt 0:00:30]} 35. Be3 {[%emt 0:01:44]} f5 {[%emt 0:00:14]} 36. Bg5 {[%emt 0:01:03]} Ra8 {[%emt 0:00:04]} 37. Bb5 {[%emt 0:00:56]} Rf8 {[%emt 0:00:31] Strongly threatening ...f4.} 38. Be3 {[%emt 0:04:08] [#]} (38. Qc3 $11) 38... Ra2 {[%emt 0:02:01]} (38... f4 $1 $17 {[%cal Rf4e3]} 39. Bd4 f3) 39. Rb2 {[%emt 0:00:21]} (39. Qc3 {keeps more tension.} fxe4 40. Rbc1 Qf5 41. Bd4) 39... Rxb2 {[%emt 0:00:17]} 40. Qxb2 {[%emt 0:00:01]} fxe4 {[%emt 0:00:17]} 41. Qd4 {[%emt 0:05:56]} Bd5 {[%emt 0:10:28]} 42. Rc1 {[%emt 0:08:13]} Kg8 {[%emt 0:05:36]} (42... Qe6 $11 {should be considered.}) 43. Kg1 {[%emt 0:02:49][%mdl 1024] White has compensation.} (43. Qc3 $5 {[%cal Rc3c7]}) 43... h6 {[%emt 0:06:08]} 44. Ba4 {[%emt 0:05:57]} Kh7 {[%emt 0:02:32]} 45. Qc3 {[%emt 0:00:53]} Nf4 {[%emt 0:01:05] Threatens to win with ...Ne2+.} 46. Bb5 {[%emt 0:01:35] Inhibits Ne2+. A strong pair of Bishops.} c6 {[%emt 0:01:00]} 47. Bf1 {[%emt 0:00:01]} b5 {[%emt 0:00:36]} (47... Qg6 {looks sharper.} 48. Bxb6 e3 49. Qxe3 Bxg2 50. Qg3 Qxg3 51. fxg3 Bxf1 52. gxf4 Bxh3 53. Rxc6 Rxf4 54. Bc5 Bd7) 48. Qd2 {[%emt 0:01:57]} Nd3 {[%emt 0:01:55]} (48... Ng6 $1 $15) 49. Bxd3 $11 {[%emt 0:01:00] The position is equal.} exd3 {[%emt 0:00:03]} 50. Qxd3+ {[%emt 0:00:05]} Qg6 {[%emt 0:00:17]} 51. Qxg6+ {[%emt 0:00:44]} Kxg6 {[%emt 0:00:02][%mdl 4096] Endgame KRB-KRB} 52. Ra1 {[%emt 0:00:11]} Rf7 {[%emt 0:02:09]} 53. f3 {[%emt 0:01:59]} h5 {[%emt 0:01:07]} 54. Kf2 {[%emt 0:00:08]} Kf5 {[%emt 0:01:28]} 55. Ra8 {[%emt 0:00:25]} Kg6 {[%emt 0:00:27]} 56. Re8 {[%emt 0:00:23]} Rd7 {[%emt 0:00:46]} 57. Rc8 {[%emt 0:03:18]} Re7 {[%emt 0:00:44]} 58. Rd8 {[%emt 0:01:14]} Rf7 {[%emt 0:01:18]} 59. Bc5 {[%emt 0:00:09]} Rf4 {[%emt 0:01:16]} 60. Ke3 {[%emt 0:00:01]} Rc4 {[%emt 0:00:22]} 61. Rd7 {[%emt 0:02:39]} h4 {[%emt 0:01:37]} 62. Bf8 {[%emt 0:01:17]} Bf7 {[%emt 0:00:09]} 63. Rd4 {[%emt 0:01:29]} Rxd4 {[%emt 0:00:31]} 64. Kxd4 {[%emt 0:00:08] KB-KB} Kf6 {[%emt 0:00:09]} 65. Ke3 {[%emt 0:00:38]} g5 {[%emt 0:00:56]} 66. Bc5 {[%emt 0:00:07]} Kf5 {[%emt 0:00:28]} 67. Bf8 {[%emt 0:00:21]} Bc4 {[%emt 0:00:40]} 68. Bc5 {[%emt 0:00:06]} Bf1 {[%emt 0:00:36]} 69. Kf2 {[%emt 0:00:01]} Bc4 {[%emt 0:00:13]} 70. Ke3 {[%emt 0:00:01]} Bf1 {[%emt 0:00:06]} 71. Kf2 {[%emt 0:00:03] Weighted Error Value: White=0.12 (very precise) /Black=0.12 (very precise)} 1/2-1/2

[Event "Summer Prague Open-A 2022"]
[Site "Prague"]
[Date "2022.08.09"]
[Round "6.8"]
[White "Zamengo, Fulvio"]
[Black "Winter, Ondrej"]
[Result "1-0"]
[ECO "B12"]
[WhiteElo "2396"]
[BlackElo "2168"]
[Annotator "RC"]
[PlyCount "71"]
[EventDate "2022.08.05"]
[EventType "swiss"]
[EventCountry "CZE"]
[SourceTitle "playchess.com"]
[Source "ChessBase"]
[SourceQuality "1"]
[TimeControl "40/5400+30:1800+30"]

1. e4 {[%emt 0:00:19]} c6 {[%emt 0:00:09]} 2. d4 {[%emt 0:00:41]} d5 {[%emt 0:00:09]} 3. f3 {[%emt 0:00:56]} dxe4 {[%emt 0:08:43]} 4. fxe4 {[%emt 0:01:00]} e5 {[%emt 0:01:16]} 5. Nf3 {[%emt 0:00:48]} exd4 {[%emt 0:03:46]} 6. Bc4 {[%emt 0:00:57]} Nf6 {[%emt 0:27:37]} 7. O-O {[%emt 0:06:26]} Be7 {[%emt 0:08:12]} 8. Ng5 {[%emt 0:11:01]} O-O {[%emt 0:00:12]} 9. Nxf7 {[%emt 0:02:40]} Rxf7 {[%emt 0:03:37]} 10. Bxf7+ Kxf7 {[%emt 0:00:02]} 11. e5 {[%emt 0:00:25]} Qd5 {[%emt 0:17:27]} 12. exf6 {[%emt 0:06:53]} Bxf6 {[%emt 0:00:03]} 13. c4 {[%emt 0:06:45]} dxc3 {[%emt 0:15:20]} 14. Qxd5+ {[%emt 0:00:27]} cxd5 {[%emt 0:00:03]} 15. Nxc3 {[%emt 0:00:12]} Be6 {[%emt 0:00:53]} 16. Bg5 {[%emt 0:01:08]} Nd7 {[%emt 0:02:09]} 17. Rad1 {[%emt 0:07:36]} Kg6 {[%emt 0:03:18]} 18. Bxf6 {[%emt 0:01:12]} Nxf6 {[%emt 0:00:02]} 19. Rfe1 {[%emt 0:00:11]} Kf7 {[%emt 0:02:42]} 20. Nb5 {[%emt 0:00:06]} Rd8 {[%emt 0:00:53]} 21. Rc1 {[%emt 0:01:13]} Ne4 {[%emt 0:02:30]} 22. Rc7+ {[%emt 0:00:21]} Rd7 {[%emt 0:00:10]} 23. Rxd7+ {[%emt 0:02:25]} Bxd7 {[%emt 0:00:01]} 24. Nc3 {[%emt 0:00:12]} Nf6 {[%emt 0:00:51]} 25. Kf2 {[%emt 0:01:21]} d4 {[%emt 0:00:36]} 26. Ne4 {[%emt 0:00:59]} Ng4+ {[%emt 0:00:45]} 27. Kg3 {[%emt 0:00:20]} Ne3 {[%emt 0:00:13]} 28. Ng5+ {[%emt 0:00:34]} Kf6 {[%emt 0:00:53]} 29. Nf3 {[%emt 0:00:59]} Nf5+ {[%emt 0:00:59]} 30. Kf2 {[%emt 0:01:32]} Bc6 {[%emt 0:01:19]} 31. g4 {[%emt 0:03:24]} Bxf3 {[%emt 0:00:24]} 32. Kxf3 {[%emt 0:00:08]} Ne3 {[%emt 0:00:02]} 33. Rc1 {[%emt 0:00:14]} Ke5 {[%emt 0:00:36]} 34. Rc7 {[%emt 0:00:11]} Nd5 {[%emt 0:00:02]} 35. Rxg7 {[%emt 0:01:12]} d3 {[%emt 0:00:12]} 36. Rxh7 {[%emt 0:00:11]} 1-0

[Event "Summer Prague Open-A 2022"]
[Site "Prague"]
[Date "2022.08.09"]
[Round "6.9"]
[White "Mirimanian, Hayk"]
[Black "Neuman, Petr"]
[Result "1/2-1/2"]
[ECO "B12"]
[WhiteElo "2228"]
[BlackElo "2378"]
[Annotator "TA"]
[PlyCount "86"]
[EventDate "2022.08.05"]
[EventType "swiss"]
[EventCountry "CZE"]
[SourceTitle "playchess.com"]
[Source "ChessBase"]
[SourceQuality "1"]
[TimeControl "40/5400+30:1800+30"]

{[%evp 13,86,0,0,0,0,-37,0,0,0,0,0,-21,-14,-57,0,15,206,-22,-31,-25,-16,-35,0,-29,-5,-44,-33,-43,-45,-47,-42,-38,-42,-46,-26,-26,-32,-34,-22,-62,-15,-32,-32,-32,-32,-47,-39,-53,-53,-54,-27,-43,-31,-47,-17,-21,-14,-24,4,-48,-22,-27,-17,-8,0,0,0,0,0,0,0,0,0,0,0]} 1. e4 {[%emt 0:01:24]} c6 {[%emt 0:00:46]} 2. d4 {[%emt 0:00:23]} d5 {[%emt 0:00:07]} 3. f3 {[%emt 0:00:03]} g6 {[%emt 0:00:22]} 4. Nc3 {[%emt 0:00:19]} Bg7 {[%emt 0:00:09]} 5. Be3 {[%emt 0:00:28]} Qb6 {[%emt 0:00:41]} 6. Qd2 {[%emt 0:04:03]} Qxb2 {[%emt 0:03:13]} 7. Rb1 {[%emt 0:00:06]} Qa3 {[%emt 0:00:05]} 8. exd5 {[%emt 0:00:14] B15: Caro-Kann: 3 Nc3: 3...g6 and 3...dxe4 4 Nxe4 Nf6 5 Nxf6+ exf6.} Nf6 {[%emt 0:00:13]} 9. Bc4 {[%emt 0:02:30]} Nbd7 {[%emt 0:09:07]} (9... O-O $5 {[%cal Rb7b5]}) 10. dxc6 {[%emt 0:24:28]} bxc6 {[%emt 0:00:12]} 11. Nge2 {[%emt 0:12:46]} Nb6 {[%emt 0:11:10]} 12. Bb3 {[%emt 0:03:03]} Ba6 {[%emt 0:00:19]} 13. Bh6 {[%emt 0:01:16]} Bxh6 {[%emt 0:03:18]} (13... O-O $1 $15) 14. Qxh6 $11 {[%emt 0:00:43]} c5 $2 {[%emt 0:00:19] [#]} (14... Bxe2 $11 15. Kxe2 Qa5) 15. dxc5 $2 {[%emt 0:05:18]} (15. Ba4+ $1 $18 {[%mdl 512]} Nxa4 16. Rb3 Qxb3 17. axb3 Nxc3 18. Nxc3) 15... Qxc5 {[%emt 0:05:01] [#]} 16. Rd1 $146 {[%emt 0:01:05]} ({Predecessor:} 16. Qg7 Rf8 17. Qh6 Bxe2 18. Nxe2 e6 19. Qh4 Ke7 20. c3 Rfd8 21. Qf2 Rac8 22. Qxc5+ Rxc5 {½-½ (70) Vallejo Pons,F (2300)-Garcia Palermo,C (2490) Santa Cruz de Tenerife 1995}) 16... Bxe2 {[%emt 0:03:32]} 17. Nxe2 {[%emt 0:00:40]} e6 {[%emt 0:01:01]} (17... a5 $5 {[%cal Ra5a4]} 18. a4 (18. Qg7 Rf8 $15) 18... Rb8 $11) 18. h4 {[%emt 0:08:33]} Ke7 {[%emt 0:00:50]} (18... a5 $5 {[%cal Ra5a4]} 19. Rd2 Nfd7 $11) 19. Qg5 {[%emt 0:00:10]} (19. Bxe6 $5 {[%cal Re6b3]} Rad8 20. Bb3 $11) 19... Rac8 {[%emt 0:00:37]} 20. Qxc5+ {[%emt 0:09:17]} Rxc5 {[%emt 0:05:31]} 21. Kf2 {[%emt 0:03:10]} Rhc8 {[%emt 0:05:27]} 22. Rhe1 {[%emt 0:03:45]} Nfd5 {[%emt 0:10:23]} 23. Nc1 {[%emt 0:03:32]} Kf6 {[%emt 0:18:06]} 24. Rd4 {[%emt 0:01:45]} a5 {[%emt 0:03:12][%cal Oa5a4]} 25. Nd3 {[%emt 0:01:59]} R5c7 {[%emt 0:00:17][%cal Oa5a4]} 26. g4 {[%emt 0:02:13]} h6 {[%emt 0:00:44]} (26... a4 $15 27. Bxd5 Nxd5) 27. Nf4 {[%emt 0:02:40]} Nxf4 {[%emt 0:01:57]} (27... Rc5 {is more complex.} 28. Nd3 Rc3 29. Nf4 Nxf4 30. Rxf4+ Ke7) 28. Rxf4+ {[%emt 0:00:02]} Ke7 {[%emt 0:00:04]} 29. Rfe4 {[%emt 0:03:39]} Nd7 {[%emt 0:01:08]} 30. Ra4 {[%emt 0:00:10]} Ra7 {[%emt 0:01:07]} 31. Rd4 {[%emt 0:01:48]} Nc5 {[%emt 0:00:54]} 32. Re2 {[%emt 0:01:00]} a4 {[%emt 0:02:17]} 33. Bc4 {[%emt 0:00:01]} g5 {[%emt 0:00:27]} 34. hxg5 {[%emt 0:02:38]} hxg5 {[%emt 0:00:02]} 35. Bb5 {[%emt 0:00:25]} f6 {[%emt 0:01:53]} 36. f4 {[%emt 0:01:35]} (36. Ke3 $11) 36... gxf4 {[%emt 0:02:14]} 37. Rxf4 {[%emt 0:00:00]} a3 {[%emt 0:00:33]} 38. Kg3 {[%emt 0:00:57] The position is equal.} e5 {[%emt 0:00:35]} 39. g5 {[%emt 0:01:00]} Rg8 40. Rg4 {And now gxf6+ would win.} Rxg5 {[%emt 0:03:36]} 41. Rxg5 {[%emt 0:30:45]} fxg5 {[%emt 0:30:03]} 42. Rxe5+ {[%emt 0:00:21]} Kd6 {[%emt 0:00:04]} 43. Re3 {[%emt 0:01:13]} Kd5 {[%emt 0:01:20] Weighted Error Value: White=0.20 (precise) /Black=0.26 (precise)} 1/2-1/2

[Event "Summer Prague Open-A 2022"]
[Site "Prague"]
[Date "2022.08.09"]
[Round "6.10"]
[White "Roubalik, Jakub"]
[Black "Philipp, Mathias"]
[Result "1-0"]
[ECO "D29"]
[WhiteElo "2380"]
[BlackElo "2092"]
[Annotator "RC"]
[PlyCount "33"]
[EventDate "2022.08.05"]
[EventType "swiss"]
[EventCountry "CZE"]
[SourceTitle "playchess.com"]
[Source "ChessBase"]
[SourceQuality "1"]
[TimeControl "40/5400+30:1800+30"]

1. d4 {[%emt 0:00:04]} d5 {[%emt 0:00:04]} 2. c4 {[%emt 0:00:11]} dxc4 {[%emt 0:00:04]} 3. Nf3 {[%emt 0:00:35]} e6 {[%emt 0:00:06]} 4. e3 {[%emt 0:01:21]} c5 {[%emt 0:00:04]} 5. Bxc4 {[%emt 0:00:09]} a6 {[%emt 0:00:04]} 6. O-O {[%emt 0:01:07]} Nf6 {[%emt 0:00:16]} 7. Qe2 {[%emt 0:01:18]} b5 {[%emt 0:00:14]} 8. Bb3 {[%emt 0:04:01]} Bb7 {[%emt 0:00:56]} 9. Nc3 {[%emt 0:04:10]} Nbd7 {[%emt 0:00:37]} 10. Rd1 {[%emt 0:00:50]} Qc7 {[%emt 0:03:19]} 11. e4 {[%emt 0:42:07]} cxd4 {[%emt 0:03:07]} 12. Nxd4 {[%emt 0:00:21]} b4 {[%emt 0:02:24]} 13. Nd5 {[%emt 0:13:13]} Qb8 {[%emt 0:27:48]} 14. Bf4 {[%emt 0:06:40]} Bd6 {[%emt 0:11:19]} 15. Bxd6 {[%emt 0:01:02]} Qxd6 {[%emt 0:00:05]} 16. Nxf6+ {[%emt 0:00:26]} gxf6 {[%emt 0:01:20]} 17. Nxe6 {[%emt 0:03:27]} 1-0

[Event "Summer Prague Open-A 2022"]
[Site "Prague"]
[Date "2022.08.09"]
[Round "6.11"]
[White "Jun, Rudolf"]
[Black "Ranaldi, Lucas"]
[Result "0-1"]
[ECO "B13"]
[WhiteElo "2134"]
[BlackElo "2339"]
[Annotator "TA"]
[PlyCount "78"]
[EventDate "2022.08.05"]
[EventType "swiss"]
[EventCountry "CZE"]
[SourceTitle "playchess.com"]
[Source "ChessBase"]
[SourceQuality "1"]
[TimeControl "40/5400+30:1800+30"]

{[%evp 17,78,29,30,0,0,0,0,-20,-25,-25,-16,-9,-3,-38,-24,-15,-6,-39,0,0,-9,0,-1,0,0,0,0,0,4,-64,-41,-150,-142,-150,-147,-235,-223,-210,-211,-245,-237,-332,-338,-333,-338,-343,-353,-327,-340,-596,-583,-592,-590,-725,-722,-675,-641,-807,-828,-710,-685,-681,-662]} 1. e4 {[%emt 0:00:05]} c6 {[%emt 0:00:08]} 2. d4 {[%emt 0:00:37]} d5 {[%emt 0:00:11]} 3. exd5 {[%emt 0:00:13]} cxd5 {[%emt 0:00:09]} 4. Bd3 {[%emt 0:00:28]} Nc6 {[%emt 0:00:12]} 5. c3 {[%emt 0:00:27]} Nf6 {[%emt 0:00:11]} 6. Bf4 {[%emt 0:00:51]} Bg4 {[%emt 0:00:33]} 7. Qb3 {[%emt 0:00:58]} Qd7 {[%emt 0:01:15]} 8. Nd2 {[%emt 0:01:24]} e6 {[%emt 0:00:21]} 9. Ngf3 {[%emt 0:00:33]} Bd6 {[%emt 0:00:30]} 10. Ne5 {[%emt 0:10:48] B13: Caro-Kann: Exchange Variation and Panov-Botvinnik Attack.} Qc7 {[%emt 0:00:59][%cal Rc6e5]} 11. O-O {[%emt 0:18:16]} Nd7 {[%emt 0:16:14]} 12. Nxg4 {[%emt 0:10:33] The position is equal.} Bxf4 {[%emt 0:00:56]} 13. Nf3 {[%emt 0:00:31]} h5 {[%emt 0:07:12]} 14. Ne3 {[%emt 0:03:22] [#]} O-O-O $146 {[%emt 0:08:57]} ({Predecessor:} 14... g5 15. Rfe1 O-O-O 16. Nf1 g4 17. N3d2 h4 18. a4 g3 19. fxg3 hxg3 20. h3 Nf6 {0-1 (47) Mou,I (1828)-Lee,A (1967) Tornelo INT 2020}) 15. c4 {[%emt 0:12:45]} (15. g3 $5 {[%cal Rg3f4]} Bh6 16. Rae1 $11) 15... dxc4 {[%emt 0:03:15]} 16. Bxc4 {[%emt 0:03:33]} Na5 {[%emt 0:03:24]} 17. Qc3 {[%emt 0:04:30]} Kb8 {[%emt 0:19:31]} ({Much less strong is} 17... Bxe3 18. fxe3 Nxc4 19. Rac1 $14) (17... g5 $5 {[%cal Rg5g4]}) 18. Be2 {[%emt 0:10:41]} Qxc3 {[%emt 0:03:01]} 19. bxc3 {[%emt 0:00:08]} Rc8 {[%emt 0:01:08]} 20. c4 {[%emt 0:01:28]} Rhd8 {[%emt 0:03:34]} 21. g3 {[%emt 0:01:49]} Bh6 {[%emt 0:05:36]} 22. Rad1 {[%emt 0:01:05]} g6 {[%emt 0:01:57]} 23. d5 {[%emt 0:04:43]} ({Better is} 23. c5 $11) 23... e5 $1 $15 {[%emt 0:01:11][%cal Be6e5,Be5e4][%mdl 32]} 24. d6 {[%emt 0:04:58] Black continues to play with concentration.} (24. Nd2 $15) 24... e4 $17 {[%emt 0:01:13]} 25. Nd2 {[%emt 0:01:51]} Nc5 {[%emt 0:04:14]} 26. Nb3 {[%emt 0:02:22]} (26. Nb1 $17) 26... Naxb3 {[%emt 0:01:16]} 27. axb3 {[%emt 0:00:02]} Nxb3 {[%emt 0:00:41]} 28. Rd5 {[%emt 0:00:41]} Rc5 {[%emt 0:03:59]} 29. Rfd1 {[%emt 0:01:31]} (29. Rb1 {was necessary.} Rxd5 30. cxd5 Bxe3 31. Rxb3) 29... Bxe3 $19 {[%emt 0:01:15]} 30. fxe3 {[%emt 0:00:02]} Rxd5 {[%emt 0:00:12]} 31. Rxd5 {[%emt 0:00:18][%mdl 4096] Endgame KRB-KRN} b6 {[%emt 0:00:17] Inhibits c5.} 32. g4 {[%emt 0:02:41]} hxg4 {[%emt 0:00:58]} 33. Kf2 $2 {[%emt 0:00:50] [#]} (33. Bxg4 {was called for.} f5 34. Be2) 33... f5 {[%emt 0:04:27] Black is clearly winning.} 34. Kg3 {[%emt 0:00:05]} Kb7 {[%emt 0:00:16]} 35. Kf4 {[%emt 0:00:49]} Kc6 {[%emt 0:00:12]} 36. Ke5 {[%emt 0:01:48]} Nc5 {[%emt 0:00:25] aiming for ...a5.} 37. Rd1 {[%emt 0:00:42]} a5 {[%emt 0:00:38]} 38. Rd2 {[%emt 0:00:28]} Re8+ {[%emt 0:02:37]} 39. Kf6 {[%emt 0:00:24]} Re6+ {[%emt 0:00:23] Weighted Error Value: White=0.45/Black=0.03 (flawless)} 0-1